fUST/lending_fUST_20260118
["ID","MTS","AMOUNT","RATE_DAILY","PERIOD"]
[402539897,1768702247733,-500.0,0.00016438,2]
[402539899,1768702247742,-500.0,0.00016438,2]
[402539901,1768702247752,-500.0,0.00016438,2]
[402539903,1768702247761,-500.0,0.00016438,2]
[402539905,1768702247770,-500.0,0.00016438,2]
[402539907,1768702247779,-500.0,0.00016438,2]
[402539909,1768702247789,-500.0,0.00016438,2]
[402539911,1768702247799,-500.0,0.00016438,2]
[402539913,1768702247807,-500.0,0.00016438,2]
[402539915,1768702247816,-582.14,0.00016438,2]
[402539917,1768702247825,-500.0,0.00016438,2]
[402539919,1768702247834,-500.0,0.00016438,2]
[402539921,1768702247844,-500.0,0.00016438,2]
[402539923,1768702247853,-500.0,0.00016438,2]
[402539925,1768702247863,-500.0,0.00016438,2]
[402539927,1768702247872,-500.86439627,0.00016438,2]
[402539929,1768702247882,-500.0,0.00016438,2]
[402539931,1768702247892,-500.0,0.00016438,2]
[402539933,1768702247902,-500.35557243,0.00016438,2]
[402539935,1768702247911,-500.62769443,0.00016438,2]
[402539938,1768702247922,-500.0,0.00016438,2]
[402539939,1768702247936,-500.0,0.00016438,2]
[402539941,1768702247946,-971.69,0.00016438,2]
[402539944,1768702247957,-500.0,0.00016438,2]
[402539946,1768702247967,-500.0,0.00016438,2]
[402539948,1768702247976,-500.0,0.00016438,2]
[402539950,1768702247986,-500.0,0.00016438,2]
[402539952,1768702247996,-500.0,0.00016438,2]
[402539954,1768702248005,-920.37,0.00016438,2]
[402539956,1768702248015,-500.0,0.00016438,2]
[402539958,1768702248024,-500.0,0.00016438,2]
[402539960,1768702248034,-500.0,0.00016438,2]
[402539962,1768702248043,-500.0,0.00016438,2]
[402539964,1768702248053,-488.28807253,0.00016438,2]
[402539966,1768702248061,-500.0,0.00016438,2]
[402539968,1768702248070,-972.64,0.00016438,2]
[402539970,1768702248080,-500.0,0.00016438,2]
[402539972,1768702248098,-500.0,0.00016438,2]
[402539974,1768702248113,-579.99,0.00016438,2]
[402539976,1768702248122,-500.0,0.00016438,2]
[402539978,1768702248132,-524.07613237,0.00016438,2]
[402539980,1768702248141,-500.0,0.00016438,2]
[402539982,1768702248150,-651.89,0.00016438,2]
[402539984,1768702248159,-756.25,0.00016438,2]
[402539986,1768702248168,-500.0,0.00016438,2]
[402539988,1768702248177,-500.0,0.00016438,2]
[402539990,1768702248186,-1802.52,0.00016438,2]
[402539992,1768702248196,-500.0,0.00016438,2]
[402539994,1768702248212,-500.0,0.00016438,2]
[402539996,1768702248221,-500.0,0.00016438,2]
[402539998,1768702248229,-500.0,0.00016438,2]
[402540000,1768702248239,-500.0,0.00016438,2]
[402540002,1768702248248,-500.0,0.00016438,2]
[402540004,1768702248257,-500.0,0.00016438,2]
[402540006,1768702248266,-500.0,0.00016438,2]
[402540008,1768702248275,-500.0,0.00016438,2]
[402540010,1768702248285,-500.0,0.00016438,2]
[402540012,1768702248294,-500.0,0.00016438,2]
[402540021,1768702248369,-500.0,0.00016438,2]
[402540023,1768702248379,-671.72,0.00016438,2]
[402540025,1768702248388,-825.76,0.00016438,2]
[402540027,1768702248396,-500.0,0.00016438,2]
[402540029,1768702248405,-500.0,0.00016438,2]
[402540031,1768702248414,-500.0,0.00016438,2]
[402540033,1768702248423,-500.0,0.00016438,2]
[402540035,1768702248432,-629.05,0.00016438,2]
[402540037,1768702248441,-500.0,0.00016438,2]
[402540039,1768702248451,-500.0,0.00016438,2]
[402540041,1768702248460,-500.0,0.00016438,2]
[402540043,1768702248469,-1311.27,0.00016438,2]
[402540045,1768702248479,-500.0,0.00016438,2]
[402540047,1768702248488,-500.0,0.00016438,2]
[402540049,1768702248497,-500.0,0.00016438,2]
[402540051,1768702248507,-500.0,0.00016438,2]
[402540053,1768702248517,-510.94247285,0.00016438,2]
[402540055,1768702248526,-500.0,0.00016438,2]
[402540057,1768702248536,-500.0,0.00016438,2]
[402540059,1768702248545,-500.0,0.00016438,2]
[402540061,1768702248553,-500.0,0.00016438,2]
[402540063,1768702248562,-500.0,0.00016438,2]
[402540065,1768702248571,-541.97,0.00016438,2]
[402540066,1768702248581,-533.5526369,0.00016438,2]
[402540068,1768702248589,-800.02,0.00016438,2]
[402540070,1768702248598,-566.56689578,0.00016438,2]
[402540072,1768702248608,-500.0,0.00016438,2]
[402540075,1768702248618,-500.0,0.00016438,2]
[402540077,1768702248627,-500.0,0.00016438,2]
[402540079,1768702248636,-500.80985225,0.00016438,2]
[402540081,1768702248645,-500.0,0.00016438,2]
[402540082,1768702248658,-500.0,0.00016438,2]
[402540084,1768702248667,-500.0,0.00016438,2]
[402540086,1768702248676,-500.0,0.00016438,2]
[402540088,1768702248685,-879.7,0.00016438,2]
[402540090,1768702248694,-500.0,0.00016438,2]
[402540093,1768702248704,-500.0,0.00016438,2]
[402540095,1768702248713,-500.0,0.00016438,2]
[402540097,1768702248722,-500.0,0.00016438,2]
[402540098,1768702248730,-500.0,0.00016438,2]
[402540099,1768702248740,-976.01,0.00016438,2]
[402540100,1768702248749,-500.0,0.00016438,2]
[402540101,1768702248758,-500.0,0.00016438,2]
[402540102,1768702248767,-500.0,0.00016438,2]
[402540103,1768702248776,-500.0,0.00016438,2]
[402540104,1768702248785,-526.88382228,0.00016438,2]
[402540105,1768702248794,-834.87,0.00016438,2]
[402540106,1768702248803,-500.0,0.00016438,2]
[402540107,1768702248812,-500.0,0.00016438,2]
[402540108,1768702248821,-500.0,0.00016438,2]
[402540109,1768702248831,-250.02162396,0.00016438,2]
[402540110,1768702248841,-500.0,0.00016438,2]
[402540111,1768702248850,-500.0,0.00016438,2]
[402540112,1768702248859,-500.0,0.00016438,2]
[402540113,1768702248869,-500.0,0.00016438,2]
[402540114,1768702248879,-500.0,0.00016438,2]
[402540116,1768702248888,-500.0,0.00016438,2]
[402540118,1768702248897,-1077.79,0.00016438,2]
[402540120,1768702248906,-500.0,0.00016438,2]
[402540122,1768702248916,-527.00747735,0.00016438,2]
[402540124,1768702248930,-534.21400732,0.00016438,2]
[402540126,1768702248939,-547.29,0.00016438,2]
[402540128,1768702248948,-500.0,0.00016438,2]
[402540130,1768702248957,-500.0,0.00016438,2]
[402540132,1768702248969,-931.01,0.00016438,2]
[402540134,1768702248978,-500.0,0.00016438,2]
[402540136,1768702248987,-482.75664561,0.00016438,2]
[402540138,1768702248997,-500.0,0.00016438,2]
[402540139,1768702249006,-500.0,0.00016438,2]
[402540142,1768702249020,-500.0,0.00016438,2]
[402540143,1768702249031,-538.69,0.00016438,2]
[402540145,1768702249042,-1050.94,0.00016438,2]
[402540147,1768702249052,-677.4,0.00016438,2]
[402540149,1768702249061,-500.0,0.00016438,2]
[402540151,1768702249071,-502.04714482,0.00016438,2]
[402540153,1768702249080,-500.0,0.00016438,2]
[402540156,1768702249089,-665.26,0.00016438,2]
[402540157,1768702249098,-500.0,0.00016438,2]
[402540159,1768702249107,-500.0,0.00016438,2]
[402540161,1768702249116,-1176.22,0.00016438,2]
[402540164,1768702249125,-500.0,0.00016438,2]
[402540165,1768702249134,-537.74,0.00016438,2]
[402540167,1768702249143,-500.0,0.00016438,2]
[402540169,1768702249152,-504.71,0.00016438,2]
[402540171,1768702249161,-500.0,0.00016438,2]
[402540173,1768702249170,-506.69750746,0.00016438,2]
[402540175,1768702249179,-1368.29,0.00016438,2]
[402540177,1768702249188,-500.0,0.00016438,2]
[402540179,1768702249197,-500.0,0.00016438,2]
[402540181,1768702249206,-500.0,0.00016438,2]
[402540183,1768702249214,-500.0,0.00016438,2]
[402540185,1768702249223,-500.0,0.00016438,2]
[402540187,1768702249232,-500.0,0.00016438,2]
[402540189,1768702249241,-500.0,0.00016438,2]
[402540191,1768702249250,-500.0,0.00016438,2]
[402540193,1768702249259,-500.0,0.00016438,2]
[402540195,1768702249268,-500.0,0.00016438,2]
[402540197,1768702249277,-500.54925496,0.00016438,2]
[402540199,1768702249286,-723.43,0.00016438,2]
[402540201,1768702249295,-1204.64,0.00016438,2]
[402540203,1768702249304,-1440.27,0.00016438,2]
[402540205,1768702249313,-500.0,0.00016438,2]
[402540207,1768702249322,-500.0,0.00016438,2]
[402540209,1768702249331,-500.25109967,0.00016438,2]
[402540211,1768702249340,-500.0,0.00016438,2]
[402540213,1768702249350,-500.0,0.00016438,2]
[402540215,1768702249359,-501.33997513,0.00016438,2]
[402540217,1768702249368,-1034.73,0.00016438,2]
[402540219,1768702249377,-500.0,0.00016438,2]
[402540221,1768702249387,-500.0,0.00016438,2]
[402540223,1768702249396,-500.0,0.00016438,2]
[402540225,1768702249405,-1026.42,0.00016438,2]
[402540227,1768702249414,-500.0,0.00016438,2]
[402540229,1768702249424,-500.0,0.00016438,2]
[402540231,1768702249433,-500.0,0.00016438,2]
[402540233,1768702249441,-1168.61,0.00016438,2]
[402540235,1768702249450,-500.10727624,0.00016438,2]
[402540237,1768702249460,-500.0,0.00016438,2]
[402540239,1768702249469,-500.40313421,0.00016438,2]
[402540241,1768702249478,-501.21815744,0.00016438,2]
[402540243,1768702249487,-500.0,0.00016438,2]
[402540245,1768702249496,-500.0,0.00016438,2]
[402540247,1768702249505,-500.0,0.00016438,2]
[402540249,1768702249514,-500.0,0.00016438,2]
[402540251,1768702249523,-500.0,0.00016438,2]
[402540253,1768702249533,-500.0,0.00016438,2]
[402540255,1768702249542,-500.0,0.00016438,2]
[402540257,1768702249552,-500.74736293,0.00016438,2]
[402540259,1768702249562,-500.0,0.00016438,2]
[402540261,1768702249571,-500.41845408,0.00016438,2]
[402540263,1768702249580,-500.0,0.00016438,2]
[402540265,1768702249589,-543.42,0.00016438,2]
[402540267,1768702249598,-500.0,0.00016438,2]
[402540269,1768702249607,-500.0,0.00016438,2]
[402540271,1768702249615,-500.0,0.00016438,2]
[402540273,1768702249625,-500.0,0.00016438,2]
[402540275,1768702249635,-500.0,0.00016438,2]
[402540277,1768702249643,-500.0,0.00016438,2]
[402540279,1768702249652,-500.31204654,0.00016438,2]
[402540280,1768702249662,-500.0,0.00016438,2]
[402540282,1768702249671,-590.82,0.00016438,2]
[402540284,1768702249681,-618.62345987,0.00016438,2]
[402540286,1768702249692,-500.0,0.00016438,2]
[402540288,1768702249700,-500.0,0.00016438,2]
[402540290,1768702249710,-500.22198326,0.00016438,2]
[402540292,1768702249719,-471.15874334,0.00016438,2]
[402540294,1768702249729,-500.0,0.00016438,2]
[402540296,1768702249738,-500.0,0.00016438,2]
[402540298,1768702249746,-575.13,0.00016438,2]
[402540300,1768702249755,-500.47971943,0.00016438,2]
[402540302,1768702249764,-500.0,0.00016438,2]
[402540304,1768702249773,-500.0,0.00016438,2]
[402540306,1768702249782,-500.0,0.00016438,2]
[402540308,1768702249792,-500.0,0.00016438,2]
[402540310,1768702249801,-539.96,0.00016438,2]
[402540312,1768702249810,-500.0,0.00016438,2]
[402540314,1768702249819,-548.41,0.00016438,2]
[402540316,1768702249827,-500.73559242,0.00016438,2]
[402540318,1768702249837,-500.0,0.00016438,2]
[402540320,1768702249845,-500.0,0.00016438,2]
[402540322,1768702249856,-500.0,0.00016438,2]
[402540324,1768702249865,-500.0,0.00016438,2]
[402540326,1768702249874,-500.0,0.00016438,2]
[402540328,1768702249883,-500.0,0.00016438,2]
[402540330,1768702249892,-500.0,0.00016438,2]
[402540332,1768702249901,-1126.48,0.00016438,2]
[402540334,1768702249910,-500.0,0.00016438,2]
[402540336,1768702249920,-500.0,0.00016438,2]
[402540337,1768702249932,-500.0,0.00016438,2]
[402540339,1768702249941,-1036.76,0.00016438,2]
[402540341,1768702249950,-634.61,0.00016438,2]
[402540343,1768702249959,-500.71563459,0.00016438,2]
[402540345,1768702249968,-500.0,0.00016438,2]
[402540347,1768702249977,-500.0,0.00016438,2]
[402540349,1768702249986,-899.68,0.00016438,2]
[402540351,1768702249997,-500.0,0.00016438,2]
[402540353,1768702250006,-578.27,0.00016438,2]
[402540355,1768702250015,-203.04707942,0.00016438,2]
[402540357,1768702250024,-682.83,0.00016438,2]
[402540359,1768702250034,-500.0,0.00016438,2]
[402540361,1768702250043,-500.0,0.00016438,2]
[402540362,1768702250052,-500.0,0.00016438,2]
[402540364,1768702250063,-500.0,0.00016438,2]
[402540366,1768702250072,-607.2,0.00016438,2]
[402540368,1768702250082,-632.14249381,0.00016438,2]
[402540371,1768702250091,-500.0,0.00016438,2]
[402540372,1768702250101,-685.36,0.00016438,2]
[402540374,1768702250110,-500.0,0.00016438,2]
[402540376,1768702250121,-546.88506928,0.00016438,2]
[402540378,1768702250130,-500.0,0.00016438,2]
[402540380,1768702250139,-962.04,0.00016438,2]
[402540382,1768702250148,-611.61,0.00016438,2]
[402540384,1768702250157,-500.0,0.00016438,2]
[402540386,1768702250166,-500.0,0.00016438,2]
[402540388,1768702250175,-500.0,0.00016438,2]
[402540390,1768702250183,-500.0,0.00016438,2]
[402540392,1768702250192,-873.22,0.00016438,2]
[402540394,1768702250201,-427.77815115,0.00016438,2]
[402540396,1768702250210,-705.37,0.00016438,2]
[402540398,1768702250219,-500.0,0.00016438,2]
[402540400,1768702250228,-500.0,0.00016438,2]
[402540402,1768702250237,-500.0,0.00016438,2]
[402540404,1768702250245,-500.0,0.00016438,2]
[402540406,1768702250254,-500.59711754,0.00016438,2]
[402540408,1768702250263,-500.0,0.00016438,2]
[402540410,1768702250272,-500.0,0.00016438,2]
[402540412,1768702250281,-500.0,0.00016438,2]
[402540414,1768702250289,-791.71,0.00016438,2]
[402540416,1768702250299,-1163.52,0.00016438,2]
[402540418,1768702250307,-500.0,0.00016438,2]
[402540420,1768702250316,-500.0,0.00016438,2]
[402540422,1768702250325,-500.0,0.00016438,2]
[402540423,1768702250334,-500.0,0.00016438,2]
[402540425,1768702250343,-500.0,0.00016438,2]
[402540427,1768702250352,-500.0,0.00016438,2]
[402540429,1768702250361,-184.2322746,0.00016438,2]
[402540431,1768702250370,-500.0,0.00016438,2]
[402540433,1768702250379,-735.16,0.00016438,2]
[402540435,1768702250388,-500.0,0.00016438,2]
[402540437,1768702250397,-1222.89,0.00016438,2]
[402540439,1768702250406,-1905.29,0.00016438,2]
[402540441,1768702250415,-500.0,0.00016438,2]
[402540443,1768702250424,-500.0,0.00016438,2]
[402540445,1768702250433,-500.0,0.00016438,2]
[402540447,1768702250442,-690.73,0.00016438,2]
[402540449,1768702250451,-594.32378597,0.00016438,2]
[402540451,1768702250460,-575.86,0.00016438,2]
[402540453,1768702250469,-329.537413,0.00016438,2]
[402540454,1768702250479,-329.537413,0.00016438,2]
[402540455,1768702250488,-500.0,0.00016438,2]
[402540456,1768702250497,-500.0,0.00016438,2]
[402540457,1768702250506,-1144.78,0.00016438,2]
[402540459,1768702250515,-705.58,0.00016438,2]
[402540461,1768702250524,-500.0,0.00016438,2]
[402540462,1768702250533,-329.537413,0.00016438,2]
[402540464,1768702250543,-500.0,0.00016438,2]
[402540465,1768702250552,-329.537413,0.00016438,2]
[402540467,1768702250561,-614.55,0.00016438,2]
[402540469,1768702250570,-500.0,0.00016438,2]
[402540471,1768702250579,-500.0,0.00016438,2]
[402540472,1768702250588,-640.88,0.00016438,2]
[402540473,1768702250597,-500.76416694,0.00016438,2]
[402540474,1768702250606,-500.0,0.00016438,2]
[402540475,1768702250615,-500.0,0.00016438,2]
[402540476,1768702250624,-637.87,0.00016438,2]
[402540477,1768702250633,-500.0,0.00016438,2]
[402540478,1768702250647,-501.80202456,0.00016438,2]
[402540479,1768702250655,-500.0,0.00016438,2]
[402540481,1768702250665,-1495.6,0.00016438,2]
[402540482,1768702250674,-1495.6,0.00016438,2]
[402540483,1768702250683,-1495.6,0.00016438,2]
[402540484,1768702250692,-1495.6,0.00016438,2]
[402540485,1768702250701,-930.29,0.00016438,2]
[402540486,1768702250710,-1495.6,0.00016438,2]
[402540487,1768702250718,-1495.6,0.00016438,2]
[402540488,1768702250727,-1495.6,0.00016438,2]
[402540489,1768702250736,-1495.6,0.00016438,2]
[402540490,1768702250746,-1495.6,0.00016438,2]
[402540491,1768702250755,-521.57,0.00016438,2]
[402540492,1768702250764,-1495.6,0.00016438,2]
[402540493,1768702250773,-1495.6,0.00016438,2]
[402540494,1768702250782,-1495.6,0.00016438,2]
[402540495,1768702250791,-1495.6,0.00016438,2]
[402540496,1768702250800,-1495.6,0.00016438,2]
[402540497,1768702250809,-1495.6,0.00016438,2]
[402540498,1768702250819,-1495.6,0.00016438,2]
[402540499,1768702250827,-1495.6,0.00016438,2]
[402540500,1768702250837,-1495.6,0.00016438,2]
[402540501,1768702250845,-1495.6,0.00016438,2]
[402540502,1768702250855,-1495.6,0.00016438,2]
[402540503,1768702250863,-1495.6,0.00016438,2]
[402540504,1768702250872,-754.03,0.00016438,2]
[402540505,1768702250882,-1495.6,0.00016438,2]
[402540506,1768702250891,-1495.6,0.00016438,2]
[402540507,1768702250900,-1495.75,0.00016438,2]
[402540508,1768702250909,-500.0,0.00016438,2]
[402540509,1768702250919,-500.0,0.00016438,2]
[402540510,1768702250931,-500.0,0.00016438,2]
[402540511,1768702250940,-500.0,0.00016438,2]
[402540512,1768702250950,-500.0,0.00016438,2]
[402540513,1768702250959,-571.98,0.00016438,2]
[402540514,1768702250968,-500.0,0.00016438,2]
[402540515,1768702250976,-500.0,0.00016438,2]
[402540516,1768702250985,-558.82,0.00016438,2]
[402540517,1768702250994,-769.72,0.00016438,2]
[402540518,1768702251003,-474.84555578,0.00016438,2]
[402540519,1768702251011,-911.45,0.00016438,2]
[402540520,1768702251020,-1357.53,0.00016438,2]
[402540521,1768702251029,-500.0,0.00016438,2]
[402540522,1768702251038,-500.0,0.00016438,2]
[402540523,1768702251047,-500.0,0.00016438,2]
[402540524,1768702251057,-500.0,0.00016438,2]
[402540525,1768702251065,-500.0,0.00016438,2]
[402540526,1768702251074,-500.0,0.00016438,2]
[402540527,1768702251084,-500.0,0.00016438,2]
[402540528,1768702251093,-500.0,0.00016438,2]
[402540529,1768702251102,-940.11,0.00016438,2]
[402540530,1768702251112,-500.0,0.00016438,2]
[402540531,1768702251122,-500.0,0.00016438,2]
[402540532,1768702251131,-500.0,0.00016438,2]
[402540533,1768702251140,-721.2,0.00016438,2]
[402540534,1768702251149,-500.0,0.00016438,2]
[402540535,1768702251159,-500.0,0.00016438,2]
[402540536,1768702251168,-9949.13,0.00016438,2]
[402540537,1768702251177,-500.0,0.00016438,2]
[402540538,1768702251187,-500.0,0.00016438,2]
[402540539,1768702251196,-1120.22,0.00016438,2]
[402540540,1768702251205,-500.0,0.00016438,2]
[402540541,1768702251214,-533.51517002,0.00016438,2]
[402540542,1768702251224,-858.5,0.00016438,2]
[402540543,1768702251233,-500.0,0.00016438,2]
[402540544,1768702251243,-500.0,0.00016438,2]
[402540545,1768702251252,-500.0,0.00016438,2]
[402540546,1768702251261,-500.0,0.00016438,2]
[402540547,1768702251271,-500.0,0.00016438,2]
[402540548,1768702251280,-500.0,0.00016438,2]
[402540549,1768702251291,-618.44,0.00016438,2]
[402540550,1768702251301,-753.54,0.00016438,2]
[402540551,1768702251310,-944.14,0.00016438,2]
[402540552,1768702251320,-500.0,0.00016438,2]
[402540553,1768702251329,-919.21,0.00016438,2]
[402540554,1768702251339,-500.0,0.00016438,2]
[402540555,1768702251348,-500.0,0.00016438,2]
[402540556,1768702251358,-500.0,0.00016438,2]
[402540557,1768702251367,-798.83,0.00016438,2]
[402540558,1768702251376,-500.73436876,0.00016438,2]
[402540559,1768702251386,-616.33,0.00016438,2]
[402540560,1768702251395,-503.7648346,0.00016438,2]
[402540561,1768702251405,-632.7,0.00016438,2]
[402540562,1768702251414,-501.87612949,0.00016438,2]
[402540563,1768702251423,-500.0,0.00016438,2]
[402540564,1768702251432,-500.0,0.00016438,2]
[402540565,1768702251442,-500.0,0.00016438,2]
[402540566,1768702251451,-914.15,0.00016438,2]
[402540567,1768702251461,-501.23216071,0.00016438,2]
[402540568,1768702251470,-500.0,0.00016438,2]
[402540569,1768702251479,-310.48034849,0.00016438,2]
[402540570,1768702251488,-500.0,0.00016438,2]
[402540571,1768702251498,-861.39,0.00016438,2]
[402540572,1768702251507,-1574.83,0.00016438,2]
[402540573,1768702251516,-500.0,0.00016438,2]
[402540574,1768702251526,-2023.42,0.00016438,2]
[402540575,1768702251535,-265.58472457,0.00016438,2]
[402540576,1768702251544,-500.0,0.00016438,2]
[402540577,1768702251554,-500.0,0.00016438,2]
[402540578,1768702251563,-424.00630784,0.00016438,2]
[402540579,1768702251572,-501.11738891,0.00016438,2]
[402540580,1768702251582,-1026.85,0.00016438,2]
[402540581,1768702251591,-493.96235988,0.00016438,2]
[402540582,1768702251601,-501.51007832,0.00016438,2]
[402540583,1768702251610,-1223.13,0.00016438,2]
[402540584,1768702251620,-500.0,0.00016438,2]
[402540585,1768702251629,-504.97033123,0.00016438,2]
[402540586,1768702251638,-1796.42,0.00016438,2]
[402540587,1768702251648,-500.0,0.00016438,2]
[402540588,1768702251658,-500.92297252,0.00016438,2]
[402540589,1768702251667,-500.0,0.00016438,2]
[402540590,1768702251676,-500.16958436,0.00016438,2]
[402540591,1768702251686,-1000.0,0.00016438,2]
[402540592,1768702251695,-517.11987252,0.00016438,2]
[402540593,1768702251704,-500.0,0.00016438,2]
[402540594,1768702251714,-500.0,0.00016438,2]
[402540595,1768702251723,-696.03,0.00016438,2]
[402540596,1768702251732,-474.09890407,0.00016438,2]
[402540597,1768702251741,-500.0,0.00016438,2]
[402540598,1768702251750,-467.62087413,0.00016438,2]
[402540599,1768702251761,-500.0,0.00016438,2]
[402540600,1768702251770,-500.0,0.00016438,2]
[402540601,1768702251779,-500.0,0.00016438,2]
[402540602,1768702251789,-500.0,0.00016438,2]
[402540603,1768702251798,-500.0,0.00016438,2]
[402540604,1768702251807,-500.0,0.00016438,2]
[402540605,1768702251817,-500.0,0.00016438,2]
[402540606,1768702251826,-500.0,0.00016438,2]
[402540607,1768702251836,-500.0,0.00016438,2]
[402540608,1768702251845,-502.29603439,0.00016438,2]
[402540609,1768702251855,-500.0,0.00016438,2]
[402540610,1768702251864,-500.0,0.00016438,2]
[402540611,1768702251874,-500.0,0.00016438,2]
[402540612,1768702251884,-500.0,0.00016438,2]
[402540613,1768702251893,-500.0,0.00016438,2]
[402540614,1768702251903,-827.68,0.00016438,2]
[402540615,1768702251913,-500.0,0.00016438,2]
[402540616,1768702251926,-500.0,0.00016438,2]
[402540617,1768702251935,-500.0,0.00016438,2]
[402540618,1768702251945,-500.0,0.00016438,2]
[402540619,1768702251954,-500.0,0.00016438,2]
[402540620,1768702251965,-500.0,0.00016438,2]
[402540621,1768702251975,-1510.9,0.00016438,2]
[402540622,1768702251984,-868.35,0.00016438,2]
[402540623,1768702251995,-965.94,0.00016438,2]
[402540624,1768702252005,-500.0,0.00016438,2]
[402540625,1768702252015,-500.0,0.00016438,2]
[402540626,1768702252025,-500.0,0.00016438,2]
[402540627,1768702252035,-500.7333805,0.00016438,2]
[402540628,1768702252044,-500.0,0.00016438,2]
[402540629,1768702252054,-528.89,0.00016438,2]
[402540630,1768702252064,-500.0,0.00016438,2]
[402540631,1768702252073,-500.0,0.00016438,2]
[402540632,1768702252082,-500.0,0.00016438,2]
[402540633,1768702252092,-500.0,0.00016438,2]
[402540634,1768702252101,-589.93,0.00016438,2]
[402540635,1768702252111,-281.84212346,0.00016438,2]
[402540636,1768702252121,-909.18,0.00016438,2]
[402540637,1768702252130,-500.0,0.00016438,2]
[402540638,1768702252141,-500.0,0.00016438,2]
[402540639,1768702252150,-500.0,0.00016438,2]
[402540640,1768702252160,-500.71620927,0.00016438,2]
[402540641,1768702252170,-500.0,0.00016438,2]
[402540642,1768702252180,-500.0,0.00016438,2]
[402540643,1768702252190,-2067.24,0.00016438,2]
[402540644,1768702252200,-500.68337615,0.00016438,2]
[402540645,1768702252210,-513.3678615,0.00016438,2]
[402540646,1768702252220,-500.0,0.00016438,2]
[402540647,1768702252229,-756.86,0.00016438,2]
[402540648,1768702252239,-815.1,0.00016438,2]
[402540649,1768702252249,-572.53,0.00016438,2]
[402540650,1768702252258,-500.66894143,0.00016438,2]
[402540651,1768702252267,-500.69858692,0.00016438,2]
[402540652,1768702252277,-500.0,0.00016438,2]
[402540653,1768702252287,-860.92,0.00016438,2]
[402540654,1768702252297,-500.0,0.00016438,2]
[402540655,1768702252306,-679.3,0.00016438,2]
[402540656,1768702252316,-500.0,0.00016438,2]
[402540657,1768702252325,-500.0,0.00016438,2]
[402540658,1768702252335,-500.0,0.00016438,2]
[402540659,1768702252344,-500.0,0.00016438,2]
[402540660,1768702252354,-501.01400823,0.00016438,2]
[402540661,1768702252364,-506.28912045,0.00016438,2]
[402540662,1768702252373,-500.0,0.00016438,2]
[402540663,1768702252383,-500.0,0.00016438,2]
[402540664,1768702252393,-500.0,0.00016438,2]
[402540665,1768702252402,-500.0,0.00016438,2]
[402540666,1768702252412,-538.49,0.00016438,2]
[402540667,1768702252421,-500.96768626,0.00016438,2]
[402540668,1768702252431,-500.0,0.00016438,2]
[402540669,1768702252440,-500.0,0.00016438,2]
[402540670,1768702252450,-500.0,0.00016438,2]
[402540671,1768702252460,-1024.83,0.00016438,2]
[402540672,1768702252470,-500.0,0.00016438,2]
[402540673,1768702252479,-500.861487,0.00016438,2]
[402540674,1768702252489,-500.0,0.00016438,2]